bitfinex-derivatives/quotes_BNBF0:USTF0_20251225
["timestamp","ask_amount","ask_price","bid_price","bid_amount"]
[1766649368136,0.20627112,843.82,843.05,0.88992288]
[1766649369233,0.20627112,843.82,843.06,0.88992288]
[1766649371140,0.20627112,843.82,843.05,0.88992288]
[1766649376044,0.20627112,843.82,843.06,0.88992288]
[1766649376248,0.20627112,843.82,843.08,0.88992288]
[1766649379052,0.20627112,843.82,843.09,0.88992288]
[1766649383051,0.20627112,843.82,842.93,1.18725045]
[1766649383052,0.20627112,843.82,843.1,0.88992288]
[1766649385953,0.20627112,843.82,843.12,0.88992288]
[1766649389753,0.20627112,843.82,843.11,0.88992288]
[1766649391256,0.20627112,843.82,843.12,0.88992288]
[1766649391461,0.20627112,843.82,843.11,0.88992288]
[1766649391662,0.20627112,843.82,843.06,0.88992288]
[1766649392262,0.20627112,843.82,843.01,0.88992288]
[1766649393262,0.20627112,843.82,843.02,0.88992288]
[1766649396264,0.20627112,843.82,843.03,0.88992288]
[1766649399263,0.20627112,843.82,843.04,0.88992288]
[1766649401269,0.20627112,843.82,843.05,0.88992288]
[1766649402371,0.20627112,843.82,843.06,0.88992288]
[1766649417682,0.8902172,843.85,843.06,0.88992288]
[1766649420182,0.8902172,843.86,843.06,0.88992288]
[1766649421277,0.8902172,843.84,843.04,0.88992288]
[1766649422289,0.8902172,843.8,843.0,0.88992288]
[1766649422580,0.8902172,843.66,842.86,0.88992288]
[1766649423382,0.8902172,843.68,842.85,0.88992288]
[1766649424282,0.8902172,843.69,842.84,0.88992288]
[1766649424982,0.01524123,844.53,842.83,0.88992288]
[1766649424983,0.8902172,843.68,842.83,0.88992288]
[1766649425483,0.8902172,843.69,842.83,0.88992288]
[1766649426279,0.01082972,844.52,842.83,0.88992288]
[1766649426280,0.8902172,843.7,842.83,0.88992288]
[1766649426488,0.8902172,843.7,842.82,0.88992288]
[1766649427283,0.8902172,843.7,842.81,0.88992288]
[1766649427882,0.8902172,843.67,842.77,0.88992288]
[1766649428582,0.20633899,843.52,842.77,0.88992288]
[1766649429286,0.20633899,843.52,842.76,0.88992288]
[1766649431388,0.20633899,843.52,842.75,0.88992288]
[1766649437290,0.20633899,843.52,842.74,0.88992288]
[1766649443295,0.20633899,843.52,842.73,0.88992288]
[1766649447299,0.20633899,843.52,842.74,0.88992288]
[1766649453303,0.20633899,843.52,842.75,0.88992288]
[1766649456206,0.20633899,843.52,842.76,0.88992288]
[1766649458306,0.20633899,843.52,842.77,0.88992288]
[1766649460312,0.20633899,843.52,842.78,0.88992288]
[1766649461311,0.20633899,843.52,842.79,0.88992288]
[1766649462512,0.20633899,843.52,842.8,0.88992288]
[1766649463313,0.20633899,843.52,842.81,0.88992288]
[1766649464314,0.20633899,843.52,842.82,0.88992288]
[1766649466518,0.20633899,843.52,842.84,0.88992288]
[1766649467421,0.20633899,843.52,842.0,0.01293887]
[1766649467422,0.20633899,843.52,842.86,0.88992288]
[1766649469318,0.20633899,843.52,842.87,0.88992288]
[1766649472419,0.20633899,843.52,842.88,0.88992288]
[1766649475632,0.20633899,843.52,842.73,1.18725045]
[1766649475633,0.8902172,843.64,842.95,0.88992288]
[1766649475832,1.0965409,843.64,842.95,0.88992288]
[1766649476334,0.2063237,843.64,842.93,0.88992288]
[1766649478229,0.2063237,843.64,842.92,0.88992288]
[1766649482332,0.2063237,843.64,842.91,0.88992288]
[1766649487446,0.2063237,843.64,842.9,0.88992288]
[1766649509265,0.2063237,843.64,842.91,0.88992288]
[1766649510661,0.2063237,843.64,842.88,0.88992288]
[1766649511465,0.2063237,843.64,842.89,0.88992288]
[1766649512268,1.0965409,843.64,842.89,0.88992288]
[1766649516370,1.0965409,843.64,842.9,0.88992288]
[1766649517465,0.8902172,843.63,842.9,0.88992288]
[1766649518771,0.2063237,843.64,842.92,0.88992288]
[1766649519369,0.2063237,843.64,842.93,0.88992288]
[1766649520368,1.0965409,843.64,842.93,0.88992288]
[1766649528075,0.2063237,843.64,842.78,1.18725045]
[1766649528274,0.2063237,843.64,842.93,0.88900856]
[1766649528275,1.09607906,843.64,842.93,0.88900856]
[1766649542591,1.09607906,843.64,842.95,0.88900856]
[1766649542789,0.2063237,843.64,842.95,0.88900856]
[1766649547892,0.88975536,843.66,842.95,0.88900856]
[1766649550394,0.88975536,843.66,842.94,0.88900856]
[1766649550596,0.88975536,843.66,842.95,0.88900856]
[1766649551197,0.88975536,843.66,842.79,1.18725045]
[1766649551198,0.88975536,843.66,842.94,0.88900856]
[1766649555204,0.88975536,843.67,842.94,0.88900856]
[1766649556404,0.88975536,843.66,842.94,0.88900856]
[1766649559303,0.88975536,843.66,842.95,0.88900856]
[1766649578315,0.88975536,843.66,842.96,0.88900856]
[1766649586222,0.88975536,843.65,842.96,0.88900856]
[1766649586618,0.88975536,843.75,843.06,0.88900856]
[1766649587318,0.88975536,843.77,843.04,0.88900856]
[1766649588224,0.88975536,843.77,843.03,0.88900856]
[1766649589225,0.88975536,843.78,843.03,0.88900856]
[1766649591226,0.88975536,843.79,843.02,0.88900856]
[1766649594328,0.88975536,843.8,843.01,0.88900856]
[1766649595128,0.01223181,844.61,842.19,0.01053967]
[1766649595426,2.96059897,844.71,842.1,2.96812612]
[1766649595729,0.00846963,845.45,841.35,0.01483662]
[1766649595929,0.01461217,846.3,840.51,0.00887701]
[1766649596129,0.01461217,846.3,839.67,0.01088975]
[1766649596625,0.01073019,847.15,840.45,9.41779303]
[1766649599631,9.43811759,846.37,840.45,9.41779303]
[1766649600231,0.00981358,847.22,839.61,0.01177353]
[1766649600431,0.0136216,848.07,838.77,0.01532901]
[1766649600627,0.0136216,848.07,831.21,5.66958233]
[1766649600832,9.477149,846.37,840.44,9.46886]
[1766649606035,9.477149,846.37,839.83,11.83607]
[1766649606036,9.477149,846.36,840.43,9.46886]
[1766649616541,9.477149,846.35,840.43,9.46886]
[1766649621738,9.477149,846.32,840.42,9.46886]
[1766649627156,9.477149,846.29,840.4,9.46886]
[1766649637463,9.477149,846.28,840.4,9.46886]
[1766649647871,9.477149,846.27,840.41,9.46886]
[1766649658281,9.477149,846.26,840.42,9.46886]
[1766649663588,9.477149,846.2,840.37,9.46886]
[1766649667991,0.20631636,844.75,841.65,0.20631636]
[1766649867969,0.01501423,845.59,841.65,0.20631636]
[1766649868166,9.477149,846.25,841.65,0.20631636]
[1766649868367,0.20633104,844.61,841.65,0.20631636]
[1766649868670,0.01041158,845.45,841.65,0.20631636]
[1766649868872,0.20633104,843.88,841.65,0.20631636]
[1766649869168,0.01448052,844.72,841.65,0.20631636]
[1766649869372,0.20633104,843.43,841.65,0.20631636]
[1766649869573,0.01519688,844.27,841.65,0.20631636]
[1766649869774,0.20633104,843.43,841.65,0.20631636]
[1766649870070,0.00880653,844.27,841.65,0.20631636]
[1766649870271,0.20634878,843.43,841.65,0.20631636]
[1766649870673,0.01464784,844.27,841.65,0.20631636]
[1766649870874,0.20640019,843.43,841.65,0.20631636]
[1766649871075,0.01062631,844.27,841.65,0.20631636]
[1766649871272,0.00940013,845.11,841.65,0.20631636]
[1766649871476,0.01013715,845.96,841.65,0.20631636]
[1766649871772,9.477149,846.25,841.65,0.20631636]
[1766649872277,0.20633104,845.11,841.65,0.20631636]
[1766649900209,0.88930573,843.63,842.89,0.88876776]
[1766649901104,0.88930573,843.65,842.91,0.88876776]
[1766649902307,0.88930573,843.64,842.91,0.88876776]
[1766649903805,0.88930573,843.69,842.97,0.88876776]
[1766649904610,0.88930573,843.7,842.97,0.88876776]
[1766649904905,0.88930573,843.75,843.02,0.88876776]
[1766649905407,0.88930573,843.76,843.01,0.88876776]
[1766649905606,0.88930573,843.76,843.02,0.88876776]
[1766649906309,0.88930573,843.77,843.01,0.88876776]
[1766649907306,0.88930573,843.78,843.01,0.88876776]
[1766649908407,0.88930573,843.78,843.0,0.88876776]
[1766649908908,0.88930573,843.79,843.01,0.88876776]
[1766649909109,0.88930573,843.8,843.02,0.88876776]
[1766649909312,0.88930573,843.8,843.01,0.88876776]
[1766649910312,0.88930573,843.81,843.01,0.88876776]
[1766649911309,0.88930573,843.81,843.0,0.88876776]
[1766649913316,0.88930573,843.82,843.0,0.88876776]
[1766649915315,0.88930573,843.82,842.99,0.88876776]
[1766649917119,0.88930573,843.83,843.0,0.88876776]
[1766649918325,0.88930573,843.83,842.99,0.88876776]
[1766649919323,0.88930573,843.84,842.99,0.88876776]
[1766649922321,0.88786246,843.84,842.99,0.88702035]
[1766649932331,0.88786246,843.83,842.98,0.88702035]
[1766649932528,0.88786246,843.82,842.98,0.88702035]
[1766649935632,0.88786246,843.81,842.97,0.88702035]
[1766649936336,0.88786246,843.81,842.98,0.88702035]
[1766649938436,0.88786246,843.8,842.98,0.88702035]
[1766649939432,0.88786246,843.8,842.99,0.88702035]
[1766649941336,0.88786246,843.79,842.99,0.88702035]
[1766649942339,0.88786246,843.79,843.0,0.88702035]
[1766649943438,0.88786246,843.8,843.01,0.88702035]
[1766649944341,0.88786246,843.8,843.02,0.88702035]
[1766649946442,0.88786246,843.79,843.03,0.88702035]
[1766649947339,0.88786246,843.78,843.03,0.88702035]
[1766649948439,0.88786246,843.77,843.04,0.88702035]
[1766649949538,0.88786246,843.77,843.05,0.88702035]
[1766649950243,0.88786246,843.76,843.05,0.88702035]
[1766649950443,0.88786246,843.77,843.05,0.88702035]
[1766649951340,0.88786246,843.76,843.05,0.88702035]
[1766649961152,0.88786246,843.77,843.06,0.88702035]
[1766649961353,0.88786246,843.96,843.25,0.88702035]
[1766649962258,0.88786246,843.99,843.22,0.88702035]
[1766649963154,0.88786246,844.03,843.23,0.88702035]
[1766649963354,0.88786246,844.11,843.31,0.88702035]
[1766649964160,0.88786246,844.13,843.29,0.88702035]
[1766649964458,0.88786246,844.14,843.3,0.88702035]
[1766649965159,0.88786246,844.16,843.28,0.88702035]
[1766649965660,0.88786246,844.17,843.29,0.88702035]
[1766649966256,0.88786246,844.18,843.28,0.88702035]
[1766649966458,0.88786246,844.19,843.28,0.88702035]
[1766649966655,0.01382847,845.02,843.32,0.88702035]
[1766649966656,0.88786246,844.23,843.32,0.88702035]
[1766649967162,0.88786246,844.25,843.31,0.88702035]
[1766649967358,0.88786246,844.25,843.3,0.88702035]
[1766649968160,0.88786246,844.26,843.29,0.88702035]
[1766649968662,0.88786246,844.27,843.3,0.88702035]
[1766649969059,0.88786246,844.28,843.29,0.88702035]
[1766649970164,0.88786246,844.29,843.28,0.88702035]
[1766649971166,1.18574098,844.44,842.97,1.77753553]
[1766649971167,0.88786246,844.3,843.27,0.88702035]
[1766649972166,0.88786246,844.31,843.26,0.88702035]
[1766649972466,0.88786246,844.37,843.32,0.88702035]
[1766649973068,0.88786246,844.38,843.31,0.88702035]
[1766649973268,0.88786246,844.4,843.36,0.88702035]
[1766649973566,0.88786246,844.43,843.36,0.88702035]
[1766649973763,0.88786246,844.44,843.37,0.88702035]
[1766649974168,0.88786246,844.45,843.36,0.88702035]
[1766649974468,0.88786246,844.45,842.46,2.96255923]
[1766649974469,0.88786246,844.47,843.37,0.88702035]
[1766649974870,0.88786246,844.49,843.39,0.88702035]
[1766649975271,0.88786246,844.53,843.41,0.88702035]
[1766649975567,0.20633104,845.11,843.47,0.88702035]
[1766649975568,0.88786246,844.59,843.47,0.88702035]
[1766649976066,0.88786246,844.63,843.46,0.88702035]
[1766649977371,0.88786246,844.64,843.45,0.88702035]
[1766649978070,0.88786246,844.66,843.43,0.88702035]
[1766649978273,0.20633104,845.11,843.5,0.88702035]
[1766649978274,0.88786246,844.73,843.5,0.88702035]
[1766649979274,0.88786246,844.74,843.48,0.88702035]
[1766649980173,0.88786246,844.77,843.48,0.88702035]
[1766649980373,0.88786246,844.79,843.5,0.88702035]
[1766649980573,0.88786246,844.81,843.52,0.88702035]
[1766649980973,0.88786246,844.82,843.53,0.88702035]
[1766649981173,0.88786246,844.84,843.52,0.88702035]
[1766649981370,0.88786246,844.87,843.55,0.88702035]
[1766649981573,0.88786246,844.9,843.58,0.88702035]
[1766649982069,0.88786246,844.99,843.62,0.88702035]
[1766649983276,0.88786246,845.01,843.61,0.88702035]
[1766649983470,0.88786246,845.01,843.6,0.88702035]
[1766649984073,0.88786246,845.03,843.59,0.88702035]
[1766649985071,0.88786246,845.05,843.58,0.88702035]
[1766649986075,0.88786246,845.06,843.57,0.88702035]
[1766649987178,0.88786246,845.07,843.56,0.88702035]
[1766649988174,0.88786246,845.08,843.55,0.88702035]
[1766649988674,0.88786246,845.07,843.54,0.88702035]
[1766649989278,0.88786246,845.06,843.52,0.88702035]
[1766649989478,0.88786246,845.03,843.49,0.88702035]
[1766649990180,0.88786246,845.04,843.49,0.88702035]
[1766649991477,0.88786246,845.03,843.49,0.88702035]
[1766649991777,0.88786246,844.99,843.43,0.88702035]
[1766649992183,0.88786246,844.95,843.4,0.88702035]
[1766649993284,0.88786246,844.94,843.4,0.88702035]
[1766649994284,0.88786246,844.94,843.41,0.88702035]
[1766649995285,0.88786246,844.93,843.41,0.88702035]
[1766649995687,0.88786246,844.93,843.42,0.88702035]
[1766649997486,0.88786246,844.93,843.12,1.77753553]
[1766649997487,0.88786246,844.92,843.43,0.88702035]
[1766649998387,0.88786246,844.91,843.44,0.88702035]
[1766649999284,0.88786246,844.9,843.45,0.88702035]
[1766650000486,0.88786246,844.89,843.46,0.88702035]
[1766650001086,0.88786246,844.88,843.47,0.88702035]
[1766650001286,0.88786246,844.87,843.48,0.88702035]
[1766650002382,0.88786246,844.86,843.49,0.88702035]
[1766650003185,0.88786246,844.85,843.5,0.88702035]
[1766650003391,0.88786246,844.84,843.51,0.88702035]
[1766650004285,0.88786246,844.82,843.53,0.88702035]
[1766650005085,0.88786246,844.81,843.53,0.88702035]
[1766650006191,0.88786246,844.79,843.56,0.88702035]
[1766650007194,0.88786246,844.78,843.57,0.88702035]
[1766650008092,0.88786246,844.76,843.58,0.88702035]
[1766650009296,0.88786246,844.75,843.59,0.88702035]
[1766650009498,0.88329267,844.75,843.59,0.88048596]
[1766650010196,1.77861147,845.05,842.75,0.0093342]
[1766650010197,0.88329267,844.74,843.6,0.88048596]
[1766650011102,0.88329267,844.73,843.61,0.88048596]
[1766650012203,0.88329267,844.72,843.62,0.88048596]
[1766650013100,0.88329267,844.71,843.63,0.88048596]
[1766650013300,0.88329267,844.7,843.63,0.88048596]
[1766650014104,0.88329267,844.69,843.65,0.88048596]
[1766650015105,0.88329267,844.67,843.65,0.88048596]
[1766650016102,0.88329267,844.65,843.67,0.88048596]
[1766650017201,0.88329267,844.63,843.68,0.88048596]
[1766650018205,0.88329267,844.62,843.7,0.88048596]
[1766650019304,0.88329267,844.6,843.71,0.88048596]
[1766650020203,0.88329267,844.59,843.72,0.88048596]
[1766650021206,0.88329267,844.6,843.73,0.88048596]
[1766650022210,0.88329267,844.6,843.74,0.88048596]
[1766650023210,0.88329267,844.6,843.75,0.88048596]
[1766650027214,0.88329267,844.61,843.77,0.88048596]
[1766650028115,0.88329267,844.61,843.78,0.88048596]
[1766650029113,0.88329267,844.6,843.78,0.88048596]
[1766650030118,0.88329267,844.6,843.79,0.88048596]
[1766650031118,0.88329267,844.61,843.81,0.88048596]
[1766650032220,0.88329267,844.61,843.82,0.88048596]
[1766650033120,0.88329267,844.6,843.83,0.88048596]
[1766650034223,0.20633104,845.11,843.84,0.88048596]
[1766650034224,0.88329267,844.59,843.84,0.88048596]
[1766650035325,0.88329267,844.63,843.88,0.88048596]
[1766650036223,0.88329267,844.62,843.88,0.88048596]
[1766650036428,0.88329267,844.63,843.88,0.88048596]
[1766650037523,0.88329267,844.63,843.72,1.18502369]
[1766650037524,0.88329267,844.67,843.91,0.88048596]
[1766650038724,0.88329267,844.69,843.92,0.88048596]
[1766650039427,0.88329267,844.69,843.91,0.88048596]
[1766650040124,0.88329267,844.7,843.91,0.88048596]
[1766650041326,0.88329267,844.7,843.9,0.88048596]
[1766650042229,0.88329267,844.71,843.9,0.88048596]
[1766650044435,0.88329267,844.71,843.89,0.88048596]
[1766650045335,0.88329267,844.72,843.89,0.88048596]
[1766650046733,0.88329267,844.73,843.9,0.88048596]
[1766650047137,0.88329267,844.74,843.91,0.88048596]
[1766650047336,1.77861147,845.05,843.91,0.88048596]
[1766650047337,0.88329267,844.75,843.91,0.88048596]
[1766650048836,0.88329267,844.8,843.96,0.88048596]
[1766650049238,0.88329267,844.86,844.01,0.88048596]
[1766650049533,0.88329267,844.95,844.07,0.88048596]
[1766650050139,0.88329267,844.97,844.09,0.88048596]
[1766650050336,0.88329267,844.98,844.07,0.88048596]
[1766650051340,0.88329267,845.0,844.06,0.88048596]
[1766650052343,0.88329267,845.01,844.05,0.88048596]
[1766650053452,0.88329267,845.02,844.04,0.88048596]
[1766650054251,0.88329267,845.07,844.09,0.88048596]
[1766650054451,0.20633104,845.11,844.08,0.88048596]
[1766650054452,0.88329267,845.08,844.08,0.88048596]
[1766650055448,0.88329267,845.09,844.07,0.88048596]
[1766650055848,0.88329267,845.09,844.06,0.88048596]
[1766650056354,0.88329267,845.1,844.05,0.88048596]
[1766650056854,1.08962371,845.11,844.07,0.88048596]
[1766650057054,0.20633104,845.11,844.12,0.88048596]
[1766650057552,0.20633104,845.11,844.11,0.88048596]
[1766650058455,0.20633104,845.11,844.1,0.88048596]
[1766650059354,0.20633104,845.11,844.09,0.88048596]
[1766650059953,0.20633104,845.11,844.1,0.88048596]
[1766650060353,0.20633104,845.11,844.09,0.88048596]
[1766650061454,0.20633104,845.11,844.08,0.88048596]
[1766650063253,0.20633104,845.11,843.27,0.01056469]
[1766650063254,0.20633104,845.11,844.03,0.88048596]
[1766650063452,0.20633104,845.11,844.01,0.88048596]
[1766650064257,0.88329267,845.0,843.85,0.88048596]
[1766650064457,0.88329267,844.93,843.79,0.88048596]
[1766650064657,0.88329267,844.89,843.75,0.88048596]
[1766650067351,0.88329267,844.88,843.76,0.88048596]
[1766650070358,0.88329267,844.87,843.77,0.88048596]
[1766650072657,0.20607995,844.6,843.66,0.88048596]
[1766650084360,0.20607995,844.6,843.65,0.88048596]
[1766650085263,0.20607995,844.6,843.74,0.88048596]
[1766650086762,0.20607995,844.6,843.73,0.88048596]
[1766650087061,0.20607995,844.6,843.74,0.88048596]
[1766650087462,0.20607995,844.6,843.73,0.88048596]
[1766650088165,0.20607995,844.6,843.74,0.88048596]
[1766650088366,0.20607995,844.6,843.73,0.88048596]
[1766650089163,0.20607995,844.6,843.74,0.88048596]
[1766650089465,0.20607995,844.6,843.73,0.88048596]
[1766650089665,0.20607995,844.6,843.75,0.88048596]
[1766650097168,0.20607995,844.6,843.76,0.88048596]
[1766650100374,0.20607995,844.6,843.77,0.88048596]
[1766650102376,0.20607995,844.6,843.78,0.88048596]
[1766650103475,0.20607995,844.6,843.79,0.88048596]
[1766650104275,0.20607995,844.6,843.8,0.88048596]
[1766650104479,0.20607995,844.6,843.81,0.88048596]
[1766650105380,0.20607995,844.6,843.82,0.88048596]
[1766650106177,0.20607995,844.6,843.83,0.88048596]
[1766650106375,0.20607995,844.6,843.84,0.88048596]
[1766650107483,0.20607995,844.6,843.87,0.88048596]
[1766650108377,0.20607995,844.6,843.89,0.88048596]
[1766650109485,0.20607995,844.6,843.9,0.88048596]
[1766650112187,0.20607995,844.6,843.91,0.88048596]
[1766650112885,0.20607995,844.6,843.9,0.88048596]
[1766650119397,0.20607995,844.6,843.91,0.88048596]
[1766650123300,0.20607995,844.6,843.92,0.88048596]
[1766650123596,0.20607995,844.6,843.91,0.88048596]
[1766650124197,0.20607995,844.6,843.92,0.88048596]
[1766650127103,0.88329267,844.47,843.72,0.88048596]
[1766650127298,0.88329267,844.36,843.6,0.88048596]
[1766650127503,0.88329267,844.35,843.59,0.88048596]
[1766650128200,0.88329267,844.39,843.56,0.88048596]
[1766650129204,0.88329267,844.41,843.53,0.88048596]
[1766650130105,0.88329267,844.43,843.52,0.88048596]
[1766650131203,0.88329267,844.43,843.49,0.88048596]
[1766650131402,0.88329267,844.39,843.45,0.88048596]
[1766650131601,0.88329267,844.33,843.39,0.88048596]
[1766650131806,0.88329267,844.29,843.35,0.88048596]
[1766650132008,0.88329267,844.2,843.26,0.88048596]
[1766650132208,0.88329267,844.24,843.23,0.88048596]
[1766650133207,0.88329267,844.27,843.2,0.88048596]
[1766650134204,0.88329267,844.29,843.17,0.88048596]
[1766650135412,0.88329267,844.31,843.15,0.88048596]
[1766650136312,0.88329267,844.33,843.14,0.88048596]
[1766650137216,0.88329267,844.34,843.12,0.88048596]
[1766650138214,0.88329267,844.36,843.11,0.88048596]
[1766650138618,0.88329267,844.37,843.13,0.88048596]
[1766650139217,0.88329267,844.38,843.11,0.88048596]
[1766650140213,0.88329267,844.39,843.11,0.88048596]
[1766650141219,0.20607995,844.6,842.27,0.0119554]
[1766650141220,0.88329267,844.38,843.1,0.88048596]
[1766650141416,0.88329267,844.38,842.2,2.96255923]
[1766650141417,0.88329267,844.39,843.09,0.88048596]
[1766650142221,0.88329267,844.39,843.08,0.88048596]
[1766650142420,0.88329267,844.39,843.09,0.88048596]
[1766650142721,0.88329267,844.39,843.08,0.88048596]
[1766650143018,0.88329267,844.39,843.09,0.88048596]
[1766650143222,0.88329267,844.41,843.09,0.88048596]
[1766650144122,0.88329267,844.41,843.08,0.88048596]
[1766650144322,0.88329267,844.42,843.08,0.88048596]
[1766650145418,0.88329267,844.42,843.07,0.88048596]
[1766650147226,0.88329267,844.43,843.06,0.88048596]
[1766650156236,0.88329267,844.43,843.07,0.88048596]
[1766650157135,0.88329267,844.42,843.07,0.88048596]
[1766650158233,0.88329267,844.42,843.08,0.88048596]
[1766650159237,0.88329267,844.41,843.08,0.88048596]
[1766650160234,0.88329267,844.4,843.09,0.88048596]
[1766650161138,0.88329267,844.39,843.09,0.88048596]
[1766650162238,0.88329267,844.38,843.1,0.88048596]
[1766650163335,0.88329267,844.37,843.11,0.88048596]
[1766650164237,0.88329267,844.36,843.12,0.88048596]
[1766650165239,0.88329267,844.35,843.14,0.88048596]
[1766650166139,0.88329267,844.34,843.15,0.88048596]
[1766650167235,0.88329267,844.32,843.17,0.88048596]
[1766650168237,0.88329267,844.3,843.18,0.88048596]
[1766650169242,0.88329267,844.28,843.21,0.88048596]
[1766650170443,0.88329267,844.25,843.23,0.88048596]
[1766650171339,0.88329267,844.22,843.27,0.88048596]
[1766650171945,0.88329267,844.21,843.26,0.88048596]
[1766650172244,0.88329267,844.14,843.29,0.88048596]
[1766650173145,0.88329267,844.13,843.3,0.88048596]
[1766650174144,0.88329267,844.12,843.31,0.88048596]
[1766650175242,0.88329267,844.11,843.33,0.88048596]
[1766650175843,0.88329267,844.1,843.32,0.88048596]
[1766650176244,0.88329267,844.07,843.35,0.88048596]
[1766650179954,0.88329267,844.02,843.3,0.88048596]
[1766650180151,0.88329267,844.02,842.44,2.96255923]
[1766650180152,0.88329267,844.02,843.28,0.88048596]
[1766650180854,0.88329267,843.99,843.26,0.88048596]
[1766650181252,0.88329267,844.0,843.25,0.88048596]
[1766650184155,0.88329267,844.01,843.24,0.88048596]
[1766650188668,0.88329267,843.94,843.16,0.88048596]
[1766650188867,0.88329267,843.94,842.33,2.96255923]
[1766650188868,0.88329267,843.86,843.08,0.88048596]
[1766650189068,0.88329267,843.88,843.07,0.88048596]
[1766650189567,0.88329267,843.87,843.06,0.88048596]
[1766650190168,0.88329267,843.88,843.05,0.88048596]
[1766650191268,0.88329267,843.89,843.04,0.88048596]
[1766650192170,0.88329267,843.9,843.03,0.88048596]
[1766650193172,0.88329267,843.91,843.02,0.88048596]
[1766650194174,0.88329267,843.91,843.01,0.88048596]
[1766650195275,0.88329267,843.92,843.01,0.88048596]
[1766650196175,0.88329267,843.92,843.0,0.88048596]
[1766650197176,0.88329267,843.93,843.0,0.88048596]
[1766650199072,0.88329267,843.93,842.99,0.88048596]
[1766650200180,0.88329267,843.94,842.99,0.88048596]
[1766650201076,0.88329267,843.93,842.98,0.88048596]
[1766650204282,0.88329267,843.94,842.98,0.88048596]
[1766650205981,0.88329267,843.93,842.97,0.88048596]
[1766650206182,0.88329267,843.97,843.01,0.88048596]
[1766650208185,0.88329267,843.99,843.03,0.88048596]
[1766650210086,0.88329267,843.98,843.03,0.88048596]
[1766650211287,0.88329267,843.98,843.04,0.88048596]
[1766650214084,0.88329267,843.97,843.04,0.88048596]
[1766650215088,0.88329267,843.97,843.05,0.88048596]
[1766650216090,0.88329267,843.99,843.07,0.88048596]
[1766650216290,0.88329267,844.01,843.1,0.88048596]
[1766650218092,0.88329267,844.0,843.1,0.88048596]
[1766650219190,0.88329267,844.0,843.11,0.88048596]
[1766650221194,0.88329267,843.99,843.11,0.88048596]
[1766650221396,0.88329267,843.99,843.12,0.88048596]
[1766650223092,0.88329267,843.98,843.12,0.88048596]
[1766650224197,0.88329267,843.98,843.13,0.88048596]
[1766650226198,0.88329267,843.97,843.13,0.88048596]
[1766650227195,0.88329267,843.97,843.14,0.88048596]
[1766650231101,0.88329267,843.96,843.15,0.88048596]
[1766650237506,0.88329267,843.96,843.16,0.88048596]
[1766650239504,0.88329267,843.95,843.16,0.88048596]
[1766650244104,0.88329267,843.95,843.17,0.88048596]
[1766650244413,1.18574098,844.1,843.01,1.18502369]
[1766650244608,0.88857692,843.95,843.17,0.88705701]
[1766650246206,0.88857692,843.94,843.17,0.88705701]
[1766650248307,0.88857692,843.94,843.18,0.88705701]
[1766650249209,1.18574098,844.09,843.18,0.88705701]
[1766650249210,0.88857692,843.93,843.18,0.88705701]
[1766650251313,0.88857692,843.93,843.19,0.88705701]
[1766650252220,0.88857692,843.92,843.19,0.88705701]
[1766650254321,0.88857692,843.88,843.15,0.88705701]
[1766650260525,1.18574098,844.03,843.0,1.18502369]
[1766650260725,0.88928011,843.88,843.15,0.88788736]
[1766650261425,0.88928011,843.87,843.14,0.88788736]
[1766650261821,0.88928011,843.79,843.06,0.88788736]
[1766650262422,0.88928011,843.8,843.04,0.88788736]
[1766650263323,0.88928011,843.81,843.04,0.88788736]
[1766650264429,0.88928011,843.81,843.03,0.88788736]
[1766650264931,0.88928011,843.78,843.0,0.88788736]
[1766650265132,0.88928011,843.74,842.96,0.88788736]
[1766650265334,0.88928011,843.75,842.94,0.88788736]
[1766650266528,0.88928011,843.76,842.93,0.88788736]
[1766650267328,0.88928011,843.77,842.92,0.88788736]
[1766650268329,0.88928011,843.74,842.9,0.88788736]
[1766650268630,0.88928011,843.75,842.89,0.88788736]
[1766650269429,0.88928011,843.76,842.88,0.88788736]
[1766650270331,0.88928011,843.77,842.87,0.88788736]
[1766650271029,0.88928011,843.74,842.85,0.88788736]
[1766650271432,0.88928011,843.75,842.85,0.88788736]
[1766650272332,0.88928011,843.75,842.84,0.88788736]
[1766650272532,0.88928011,843.76,842.84,0.88788736]
[1766650272930,0.20632126,843.53,842.84,0.88788736]
[1766650273433,0.20632126,843.53,842.83,0.88788736]
[1766650275437,0.20632126,843.53,842.82,0.88788736]
[1766650278338,0.20632126,843.53,842.81,0.88788736]
[1766650281741,0.20632126,843.53,842.75,0.88788736]
[1766650283339,0.20632126,843.53,842.74,0.88788736]
[1766650290753,0.20632126,843.53,842.63,0.88788736]
[1766650290948,0.20632126,843.53,842.54,0.88788736]
[1766650291352,0.20632126,843.53,842.55,0.88788736]
[1766650291550,0.20632126,843.53,842.54,0.88788736]
[1766650292348,0.20632126,843.53,842.53,0.88788736]
[1766650292954,0.20632126,843.53,842.55,0.88788736]
[1766650293449,0.20632126,843.53,842.54,0.88788736]
[1766650295954,0.20632126,843.53,842.53,0.88788736]
[1766650297249,0.20632126,843.53,842.54,0.88788736]
[1766650297450,0.20632126,843.53,842.53,0.88788736]
[1766650298255,0.20632126,843.53,842.54,0.88788736]
[1766650298451,0.20632126,843.53,842.53,0.88788736]
[1766650299250,0.20632126,843.53,842.54,0.88788736]